bitfinex-derivatives/quotes_BNBF0:USTF0_20250523
["timestamp","ask_amount","ask_price","bid_price","bid_amount"]
[1747976846795,1.08020006,688.49,686.89,0.29116743]
[1747976849605,1.08020006,688.6,686.89,0.29116743]
[1747976852703,1.08020006,688.63,686.89,0.29116743]
[1747976854403,0.99892345,688.62,686.89,0.29116743]
[1747976857107,0.99892345,688.61,686.89,0.29116743]
[1747976858909,0.99892345,688.6,686.89,0.29116743]
[1747976860111,0.99892345,688.59,686.89,0.29116743]
[1747976861811,0.99892345,688.58,686.89,0.29116743]
[1747976863010,0.99892345,688.57,686.89,0.29116743]
[1747976864711,0.99892345,688.56,686.89,0.29116743]
[1747976866312,0.99892345,688.55,686.89,0.29116743]
[1747976867709,0.99892345,688.54,686.89,0.29116743]
[1747976868916,0.99892345,688.53,686.89,0.29116743]
[1747976870816,0.99892345,688.52,686.89,0.29116743]
[1747976872216,0.99892345,688.51,686.89,0.29116743]
[1747976873217,0.99892345,688.5,686.89,0.29116743]
[1747976874618,0.99892345,688.49,686.89,0.29116743]
[1747976876119,0.99892345,688.48,686.89,0.29116743]
[1747976877318,0.99892345,688.47,686.89,0.29116743]
[1747976878618,0.99892345,688.46,686.89,0.29116743]
[1747976879519,0.99892345,688.45,686.89,0.29116743]
[1747976881518,0.99892345,688.44,686.89,0.29116743]
[1747976882322,0.99892345,688.5,686.89,0.29116743]
[1747976883826,0.99892345,688.49,686.89,0.29116743]
[1747976885525,0.99892345,688.62,686.89,0.29116743]
[1747976886925,1.08020006,688.57,686.89,0.29116743]
[1747976888627,0.99892345,688.56,686.89,0.29116743]
[1747976889929,0.99892345,688.55,686.89,0.29116743]
[1747976891227,0.99892345,688.54,686.89,0.29116743]
[1747976893130,0.99892345,688.53,686.89,0.29116743]
[1747976894525,0.99892345,688.57,686.89,0.29116743]
[1747976895537,2.07912351,688.56,687.17,3.04972519]
[1747976895732,2.07912351,688.56,687.19,0.29104032]
[1747976897039,0.99892345,688.55,687.19,0.29104032]
[1747976898440,0.99892345,688.54,687.19,0.29104032]
[1747976899141,0.99892345,688.53,687.19,0.29104032]
[1747976901744,0.99892345,688.71,687.19,0.29104032]
[1747976902746,0.99892345,688.7,687.19,0.29104032]
[1747976904947,0.99892345,688.73,687.19,0.29104032]
[1747976906649,1.08020006,688.81,687.19,0.29104032]
[1747976908351,1.08020006,688.94,687.19,0.29104032]
[1747976909453,0.99892345,688.93,687.19,0.29104032]
[1747976911256,0.99892345,688.92,687.19,0.29104032]
[1747976912857,0.99892345,688.91,687.19,0.29104032]
[1747976914560,0.99892345,688.95,687.19,0.29104032]
[1747976915756,0.99892345,688.94,687.19,0.29104032]
[1747976917160,1.08020006,688.79,687.19,3.34076551]
[1747976919968,1.08020006,688.88,687.19,3.34076551]
[1747976921465,0.99892345,688.87,687.19,3.34076551]
[1747976922973,0.99892345,688.86,687.19,3.34076551]
[1747976924473,0.99892345,688.85,687.19,3.34076551]
[1747976925775,0.99892345,688.84,687.19,3.34076551]
[1747976926873,0.99892345,688.83,687.19,3.34076551]
[1747976928671,0.99892345,688.82,687.19,3.34076551]
[1747976929578,0.99892345,688.81,687.19,3.34076551]
[1747976931480,0.99892345,688.8,687.19,0.29104032]
[1747976933177,0.99892345,688.79,687.19,0.29104032]
[1747976934283,0.99892345,688.78,687.19,0.29104032]
[1747976935885,0.99892345,688.77,687.19,0.29104032]
[1747976937689,0.99892345,688.76,687.19,0.29104032]
[1747976938986,0.99892345,688.75,687.19,0.29104032]
[1747976940489,0.99892345,688.74,687.19,0.29104032]
[1747976941488,0.99892345,688.73,687.19,0.29104032]
[1747976943088,0.99892345,688.72,687.19,0.29104032]
[1747976944489,0.99892345,688.71,687.19,0.29104032]
[1747976945793,0.99892345,688.7,687.19,0.29104032]
[1747976947290,0.99892345,688.81,687.19,0.29104032]
[1747976949387,0.99892345,688.8,687.19,0.29104032]
[1747976950390,0.99892345,688.79,687.19,0.29104032]
[1747976951894,0.99892345,688.78,687.19,0.29104032]
[1747976953693,0.99892345,688.86,687.19,0.29104032]
[1747976954590,0.99892345,688.85,687.19,0.29104032]
[1747976956097,0.99892345,688.84,687.19,0.29104032]
[1747976958299,0.99892345,688.83,687.19,0.29104032]
[1747976959602,0.99892345,688.82,687.19,0.29104032]
[1747976961201,0.99892345,688.81,687.27,3.04972519]
[1747976961400,0.99892345,688.81,687.29,0.29099797]
[1747976962905,0.99892345,688.8,687.29,0.29099797]
[1747976964607,0.99892345,688.79,687.29,0.29099797]
[1747976965903,0.99892345,688.78,687.29,0.29099797]
[1747976967904,0.99892345,688.77,687.29,0.29099797]
[1747976969612,0.99892345,688.84,687.29,0.29099797]
[1747976971914,1.08020006,688.8,687.29,0.29099797]
[1747976973613,0.99892345,688.79,687.29,0.29099797]
[1747976976419,0.99892345,688.82,687.29,0.29099797]
[1747976978220,0.99892345,688.81,687.45,3.04972519]
[1747976978420,0.99892345,688.81,687.47,0.29092178]
[1747976979921,0.99892345,688.8,687.47,0.29092178]
[1747976981924,1.08020006,688.8,687.47,0.29092178]
[1747976982922,0.99892345,688.79,687.47,0.29092178]
[1747976985024,0.99892345,688.78,687.47,0.29092178]
[1747976986027,0.99892345,688.77,687.47,0.29092178]
[1747976987228,0.99892345,688.76,687.47,0.29092178]
[1747976988629,0.99892345,688.75,687.47,0.29092178]
[1747976989530,0.99892345,688.74,687.47,0.29092178]
[1747976991332,0.99892345,688.73,687.47,0.29092178]
[1747976992932,1.08020006,688.83,687.47,0.29092178]
[1747976994236,0.99892345,688.82,687.47,0.29092178]
[1747976995835,0.99892345,688.81,687.47,0.29092178]
[1747976997137,0.99892345,688.8,687.47,0.29092178]
[1747976999133,0.99892345,688.79,687.47,0.29092178]
[1747977001138,0.99892345,688.78,687.47,0.29092178]
[1747977002439,0.99892345,688.77,687.47,0.29092178]
[1747977004840,0.99892345,688.76,687.47,0.29092178]
[1747977006540,0.99892345,688.75,687.47,0.29092178]
[1747977008237,0.99892345,688.74,687.47,0.29092178]
[1747977009440,0.99892345,688.73,687.47,0.29092178]
[1747977011243,0.99892345,688.72,687.47,0.29092178]
[1747977012646,0.99892345,688.71,687.47,0.29092178]
[1747977014846,0.99892345,688.7,687.47,0.29092178]
[1747977016647,0.99892345,688.69,687.47,0.29092178]
[1747977018644,0.99892345,688.68,687.47,0.29092178]
[1747977019551,0.99892345,688.67,687.47,0.29092178]
[1747977021253,0.99892345,688.66,687.47,0.29092178]
[1747977022253,0.99892345,688.65,687.47,0.29092178]
[1747977023953,0.99892345,688.64,687.47,0.29092178]
[1747977024851,0.99892345,688.63,687.47,0.29092178]
[1747977026655,0.99892345,688.62,687.47,0.29092178]
[1747977027950,0.99892345,688.61,687.47,0.29092178]
[1747977029655,0.99892345,688.6,687.47,0.29092178]
[1747977031156,0.99892345,688.59,687.47,0.29092178]
[1747977033159,0.99892345,688.58,687.47,0.29092178]
[1747977034462,0.99892345,688.84,687.47,0.29092178]
[1747977036166,1.08020006,688.76,687.47,0.29092178]
[1747977037362,0.99892345,688.75,687.47,0.29092178]
[1747977039267,1.08020006,688.63,687.58,3.04972519]
[1747977039566,1.08020006,688.63,687.59,0.29087101]
[1747977040162,0.99892345,688.62,687.59,0.29087101]
[1747977041968,1.08020006,688.58,687.59,0.29087101]
[1747977043867,0.99892345,688.57,687.59,0.29087101]
[1747977045169,0.99892345,688.56,687.59,0.29087101]
[1747977046464,0.99892345,688.58,687.59,0.29087101]
[1747977049472,1.08020006,688.62,687.59,0.29087101]
[1747977051468,1.08020006,688.65,687.59,0.29087101]
[1747977052874,0.99892345,688.64,687.59,0.29087101]
[1747977054375,1.08020006,688.62,687.59,0.29087101]
[1747977056977,1.08020006,688.64,687.59,0.29087101]
[1747977059979,1.08020006,688.66,687.59,0.29087101]
[1747977061878,0.99892345,688.65,687.59,0.29087101]
[1747977063679,1.08020006,688.56,687.59,0.29087101]
[1747977065987,1.08020006,688.52,687.59,0.29087101]
[1747977069481,1.08020006,688.49,687.59,0.29087101]
[1747977072489,1.08020006,688.51,687.59,0.29087101]
[1747977075599,2.16040013,688.8,687.59,0.29087101]
[1747977075600,1.08020006,688.41,687.59,0.29087101]
[1747977076900,1.08020006,688.41,686.71,3.04972519]
[1747977077198,1.08020006,688.41,686.73,0.29123527]
[1747977079095,1.08020006,688.28,686.73,0.29123527]
[1747977081496,1.08020006,688.31,686.73,0.29123527]
[1747977084701,1.08020006,688.33,686.73,0.29123527]
[1747977087900,1.08020006,688.4,686.73,0.29123527]
[1747977091008,1.08020006,688.43,686.73,0.29123527]
[1747977094008,1.08020006,688.38,686.77,3.04972519]
[1747977094216,1.08020006,688.38,686.79,0.29120983]
[1747977096610,1.08020006,688.37,686.79,0.29120983]
[1747977097817,1.44026675,688.49,686.79,0.29120983]
[1747977098019,1.01382285,688.36,686.79,0.29120983]
[1747977099718,1.01382285,688.35,686.79,0.29120983]
[1747977101018,1.08253652,688.37,686.79,0.29120983]
[1747977102722,1.08253652,688.44,686.79,0.29120983]
[1747977102929,1.01382285,688.36,686.79,0.29120983]
[1747977104131,1.08253652,688.44,686.79,0.29120983]
[1747977106237,1.08253652,688.48,686.79,0.29120983]
[1747977108540,1.08253652,688.48,686.9,3.04972519]
[1747977108735,1.08253652,688.48,686.92,0.29115471]
[1747977111542,1.08253652,688.47,686.92,0.29115471]
[1747977117346,1.01382285,688.6,686.92,0.29115471]
[1747977118646,1.01382285,688.7,686.92,0.29115471]
[1747977120144,1.08253652,688.54,686.92,0.29115471]
[1747977121048,1.01382285,688.53,686.92,0.29115471]
[1747977122750,1.08253652,688.53,686.92,0.29115471]
[1747977125057,1.01382285,688.52,686.92,0.29115471]
[1747977126556,1.08253652,688.47,686.92,0.29115471]
[1747977128649,1.01382285,688.46,686.92,0.29115471]
[1747977130956,1.08253652,688.46,686.92,0.29115471]
[1747977134458,2.09635937,688.58,686.92,0.29115471]
[1747977135358,1.01382285,688.57,686.92,0.29115471]
[1747977137162,1.08253652,688.63,686.92,0.29115471]
[1747977139662,1.08253652,688.62,687.14,3.04972519]
[1747977139856,1.08253652,688.62,687.16,0.29105302]
[1747977141659,1.08253652,688.61,687.16,0.29105302]
[1747977143866,1.08253652,688.6,687.16,0.29105302]
[1747977150473,1.08253652,688.59,687.16,0.29105302]
[1747977153771,1.08253652,688.59,687.22,3.04972519]
[1747977153978,1.08253652,688.59,687.24,0.29101914]
[1747977155569,1.01382285,688.58,687.24,0.29101914]
[1747977157576,1.01382285,688.57,687.24,0.29101914]
[1747977158778,1.01382285,688.56,687.24,0.29101914]
[1747977160682,1.01382285,688.55,687.24,0.29101914]
[1747977161681,1.01382285,688.54,687.24,0.29101914]
[1747977163180,1.08253652,688.43,687.24,0.29101914]
[1747977164383,1.01382285,688.42,687.24,0.29101914]
[1747977166183,1.08253652,688.37,687.24,0.29101914]
[1747977168786,1.01382285,688.49,687.24,0.29101914]
[1747977169782,1.01382285,688.48,687.24,0.29101914]
[1747977171289,1.01382285,688.47,687.24,0.29101914]
[1747977172186,1.01382285,688.46,687.24,0.29101914]
[1747977174688,2.09635937,688.54,687.24,0.29101914]
[1747977175887,1.01382285,688.53,687.24,0.29101914]
[1747977177687,1.08253652,688.49,687.24,0.29101914]
[1747977179689,1.01382285,688.48,687.24,0.29101914]
[1747977181693,1.08253652,688.47,687.24,0.29101914]
[1747977183593,1.01382285,688.46,687.24,0.29101914]
[1747977184894,1.01382285,688.45,687.24,0.29101914]
[1747977185996,1.01382285,688.44,687.24,0.29101914]
[1747977187599,1.01382285,688.55,687.24,0.29101914]
[1747977189099,1.01382285,688.64,687.24,0.29101914]
[1747977190603,1.01382285,688.63,687.24,0.29101914]
[1747977192105,1.01382285,688.62,687.24,0.29101914]
[1747977194005,1.01382285,688.61,687.24,0.29101914]
[1747977195510,1.01382285,688.6,687.24,0.29101914]
[1747977197107,1.01382285,688.59,687.24,0.29101914]
[1747977198813,1.01382285,688.58,687.24,0.29101914]
[1747977200615,1.44026675,688.57,687.24,0.29101914]
[1747977200817,1.08253652,688.43,687.24,0.29101914]
[1747977201914,1.01382285,688.42,687.24,0.29101914]
[1747977203419,1.01382285,688.56,687.24,0.29101914]
[1747977204919,1.01382285,688.55,687.24,0.29101914]
[1747977206925,1.01382285,688.54,687.24,0.29101914]
[1747977208625,1.01382285,688.53,687.24,0.29101914]
[1747977209827,1.08253652,688.62,687.24,0.29101914]
[1747977211225,1.01382285,688.61,687.24,0.29101914]
[1747977212721,1.01382285,688.6,687.24,0.29101914]
[1747977212926,1.08253652,688.56,687.24,0.29101914]
[1747977215429,1.08253652,688.58,687.25,3.04972519]
[1747977215623,1.08253652,688.58,687.27,0.29100644]
[1747977217930,1.08253652,688.56,687.27,0.29100644]
[1747977220231,1.08253652,688.64,687.27,0.29100644]
[1747977221434,1.01382285,688.63,687.27,0.29100644]
[1747977222633,1.01382285,688.62,687.27,0.29100644]
[1747977223934,1.01382285,688.61,687.27,0.29100644]
[1747977225436,1.01382285,688.6,687.27,0.29100644]
[1747977226538,1.01382285,688.59,687.27,0.29100644]
[1747977228038,1.01382285,688.58,687.27,0.29100644]
[1747977229237,1.01382285,688.57,687.27,0.29100644]
[1747977230541,1.01382285,688.56,687.27,0.29100644]
[1747977231242,1.01382285,688.55,687.27,0.29100644]
[1747977232445,1.01382285,688.54,687.27,0.29100644]
[1747977233845,1.01382285,688.53,687.27,0.29100644]
[1747977235249,1.01382285,688.52,687.27,0.29100644]
[1747977236543,1.01382285,688.51,687.27,0.29100644]
[1747977237849,1.01382285,688.5,687.27,0.29100644]
[1747977239550,1.01382285,688.49,687.27,0.29100644]
[1747977241147,1.01382285,688.48,687.27,0.29100644]
[1747977242151,1.01382285,688.47,687.27,0.29100644]
[1747977243655,1.01382285,688.58,687.27,0.29100644]
[1747977245455,1.01382285,688.57,687.27,0.29100644]
[1747977248656,2.09635937,688.56,687.27,0.29100644]
[1747977249660,1.01382285,688.55,687.27,0.29100644]
[1747977251161,1.01382285,688.54,687.27,0.29100644]
[1747977252855,1.01382285,688.53,687.27,0.29100644]
[1747977254960,1.01382285,688.52,687.27,0.29100644]
[1747977256259,1.01382285,688.51,687.27,0.29100644]
[1747977257761,1.01382285,688.5,687.27,0.29100644]
[1747977258663,1.01382285,688.49,687.27,0.29100644]
[1747977260261,1.08253652,688.38,687.27,0.29100644]
[1747977261763,1.01382285,688.37,687.27,0.29100644]
[1747977263163,1.01382285,688.36,687.27,0.29100644]
[1747977264562,1.01382285,688.35,687.27,0.29100644]
[1747977265959,1.01382285,688.34,687.27,0.29100644]
[1747977266961,1.01382285,688.33,687.27,0.29100644]
[1747977268769,1.01382285,688.4,687.27,0.29100644]
[1747977270070,1.01382285,688.39,687.27,0.29100644]
[1747977271870,1.01382285,688.38,687.27,0.29100644]
[1747977272672,1.01382285,688.37,687.27,0.29100644]
[1747977274180,1.01382285,688.36,687.27,0.29100644]
[1747977275278,1.01382285,688.42,687.27,0.29100644]
[1747977277680,1.01382285,688.41,687.27,0.29100644]
[1747977279682,1.01382285,688.42,687.27,0.29100644]
[1747977281186,1.08253652,688.4,687.27,0.29100644]
[1747977283085,1.01382285,688.39,687.27,0.29100644]
[1747977284387,1.01382285,688.38,687.27,0.29100644]
[1747977285283,1.01382285,688.37,687.27,0.29100644]
[1747977287186,1.01382285,688.36,687.27,0.29100644]
[1747977289586,1.01382285,688.4,687.27,0.29100644]
[1747977291389,2.09635937,688.39,687.27,0.29100644]
[1747977292890,1.08253652,688.39,687.27,0.29100644]
[1747977294689,1.08253652,688.37,687.27,0.29100644]
[1747977295685,1.01382285,688.36,687.27,0.29100644]
[1747977297390,1.01382285,688.35,687.27,0.29100644]
[1747977298894,1.01382285,688.34,687.27,0.29100644]
[1747977300195,1.01382285,688.33,687.27,0.29100644]
[1747977301897,1.01382285,688.32,687.27,0.29100644]
[1747977302799,1.01382285,688.31,687.27,0.29100644]
[1747977304498,1.08253652,688.34,687.27,0.29100644]
[1747977307599,1.08253652,688.3,687.27,0.29100644]
[1747977310700,1.01382285,688.39,687.27,0.29100644]
[1747977310701,1.08253652,688.27,687.27,0.29100644]
[1747977314704,1.08253652,688.29,687.27,0.29100644]
[1747977315799,1.01382285,688.28,687.27,0.29100644]
[1747977317607,1.01382285,688.27,687.27,0.29100644]
[1747977318706,1.01382285,688.26,687.27,0.29100644]
[1747977320309,1.01382285,688.26,686.76,3.04972519]
[1747977320804,1.08253652,688.18,686.76,3.04972519]
[1747977321107,1.08253652,688.18,686.48,0.25306238]
[1747977322710,1.01382285,688.17,686.48,0.25306238]
[1747977324206,1.01382285,688.16,686.48,0.25306238]
[1747977326108,1.01382285,688.15,686.48,0.25306238]
[1747977327307,1.08253652,688.13,686.48,0.25306238]
[1747977331008,1.08253652,688.12,686.48,0.25306238]
[1747977333614,1.08253652,688.11,686.48,0.25306238]
[1747977338714,1.08253652,688.1,686.48,0.25306238]
[1747977341221,1.08253652,688.1,686.5,0.29133284]
[1747977341913,1.08253652,688.09,686.5,0.29133284]
[1747977344619,1.44026675,688.22,686.5,0.29133284]
[1747977344620,1.08253652,688.01,686.5,0.29133284]
[1747977350524,1.08253652,688.08,686.5,0.29133284]
[1747977352922,1.08253652,688.07,686.5,0.29133284]
[1747977357025,1.44026675,688.21,686.5,0.29133284]
[1747977357026,1.01382285,688.18,686.5,0.29133284]
[1747977358727,1.01382285,688.17,686.5,0.29133284]
[1747977360631,1.08253652,688.21,686.5,0.29133284]
[1747977360632,1.01382285,688.16,686.5,0.29133284]
[1747977361534,1.01382285,688.19,686.5,0.29133284]
[1747977363237,1.08253652,688.25,686.5,0.29133284]
[1747977366334,1.08253652,688.29,686.5,0.29133284]
[1747977368836,1.08253652,688.24,686.5,0.29133284]
[1747977371846,1.08253652,688.2,686.5,0.29133284]
[1747977372944,1.01382285,688.19,686.5,0.29133284]
[1747977374648,1.08253652,688.13,686.5,0.29133284]
[1747977375846,1.01382285,688.12,686.5,0.29133284]
[1747977377449,1.08253652,688.01,686.5,0.29133284]
[1747977378750,1.01382285,688.0,686.5,0.29133284]
[1747977381047,1.01382285,687.99,686.5,0.29133284]
[1747977383854,2.09635937,687.99,686.5,0.29133284]
[1747977385849,1.08253652,687.99,686.5,0.29133284]
[1747977387055,1.01382285,688.1,686.5,0.29133284]
[1747977388756,1.01382285,688.09,686.5,0.29133284]
[1747977390856,1.01382285,688.08,686.5,0.29133284]
[1747977392256,1.01382285,688.12,686.5,0.29133284]
[1747977393860,1.08253652,688.09,686.68,3.04972519]
[1747977394161,1.08253652,688.09,686.7,0.29124799]
[1747977401966,1.08253652,688.1,686.7,0.29124799]
[1747977403268,1.01382285,688.09,686.7,0.29124799]
[1747977405168,1.01382285,688.08,686.7,0.29124799]
[1747977406768,1.01382285,688.07,686.7,0.29124799]
[1747977409373,1.01382285,688.06,686.7,0.29124799]
[1747977410672,1.01382285,688.05,686.7,0.29124799]
[1747977412072,1.01382285,688.04,686.7,0.29124799]
[1747977413476,1.01382285,688.03,686.7,0.29124799]
[1747977415174,1.01382285,688.02,686.7,0.29124799]
[1747977416072,1.01382285,688.01,686.7,0.29124799]
[1747977417874,1.01382285,688.0,686.7,0.29124799]
[1747977419073,1.01382285,687.99,686.7,0.29124799]
[1747977420470,1.01382285,687.98,686.7,0.29124799]
[1747977421976,1.01382285,687.97,686.7,0.29124799]
[1747977423377,1.01382285,687.96,686.7,0.29124799]
[1747977424578,1.01382285,687.95,686.7,0.29124799]
[1747977425879,1.08253652,687.97,686.7,0.29124799]
[1747977426878,1.01382285,687.96,686.7,0.29124799]
[1747977428678,1.01382285,687.95,686.7,0.29124799]
[1747977430377,1.08253652,687.96,686.7,0.29124799]
[1747977432375,1.08253652,687.93,686.7,0.29124799]
[1747977433780,1.01382285,687.92,686.7,0.29124799]
[1747977435586,1.01382285,687.91,686.7,0.29124799]
[1747977436590,1.01382285,687.9,686.7,0.29124799]
[1747977437789,1.08253652,687.92,686.7,0.29124799]
[1747977437790,1.01382285,687.89,686.7,0.29124799]
[1747977439394,1.01382285,687.88,686.7,0.29124799]
[1747977441095,1.01382285,687.87,686.7,0.29124799]
[1747977442293,1.01382285,687.95,686.7,0.29124799]
[1747977444295,1.01382285,687.94,686.7,0.29124799]
[1747977445696,1.01382285,687.93,686.7,0.29124799]
[1747977447393,1.08253652,687.89,686.7,0.29124799]
[1747977448396,1.01382285,687.88,686.7,0.29124799]
[1747977450101,1.01382285,687.87,686.7,0.29124799]
[1747977451798,1.01382285,687.9,686.7,0.29124799]
[1747977453906,1.01382285,687.89,686.7,0.29124799]
[1747977455106,1.01382285,687.88,686.7,0.29124799]
[1747977456909,1.01382285,687.87,686.7,0.29124799]
[1747977458304,1.01382285,687.9,686.7,0.29124799]
[1747977459610,1.08253652,687.95,686.7,0.29124799]
[1747977460612,1.01382285,687.94,686.7,0.29124799]
[1747977462216,2.09635937,687.94,686.7,0.29124799]
[1747977463115,1.08253652,687.94,686.7,0.29124799]
[1747977465415,1.01382285,687.93,686.7,0.29124799]
[1747977467016,1.08253652,687.94,686.7,0.29124799]
[1747977467017,1.01382285,687.92,686.7,0.29124799]
[1747977468617,1.01382285,687.91,686.7,0.29124799]
[1747977469922,1.01382285,687.9,686.7,0.29124799]
[1747977471515,1.01382285,687.89,686.7,0.29124799]
[1747977473120,1.01382285,687.88,686.7,0.29124799]
[1747977474215,1.01382285,687.94,686.7,0.29124799]
[1747977475619,1.01382285,687.93,686.7,0.29124799]
[1747977477223,1.01382285,687.92,686.7,0.29124799]
[1747977478321,1.01382285,687.91,686.7,0.29124799]
[1747977479723,1.01382285,687.9,686.7,0.29124799]
[1747977481426,1.01382285,687.89,686.7,0.29124799]
[1747977483425,1.08253652,687.94,686.7,0.29124799]
[1747977483426,2.09635937,687.93,686.7,0.29124799]
[1747977484731,1.01382285,687.92,686.7,0.29124799]
[1747977486325,1.01382285,687.91,686.7,0.29124799]
[1747977487933,1.01382285,687.9,686.7,0.29124799]
[1747977489827,1.01382285,687.89,686.7,0.29124799]
[1747977491236,1.01382285,687.88,686.7,0.29124799]
[1747977492843,1.08253652,687.84,686.7,0.29124799]
[1747977493944,1.01382285,687.83,686.7,0.29124799]
[1747977495442,1.01382285,687.82,686.7,0.29124799]
[1747977497046,1.429,687.81,686.7,0.29124799]
[1747977497945,1.01382285,687.8,686.7,0.29124799]
[1747977507362,1.01382285,687.8,686.76,3.04972519]
[1747977507563,1.01382285,687.8,686.78,0.29121407]
[1747977523774,1.01382285,687.79,686.78,0.29121407]
[1747977524672,1.01382285,687.78,686.78,0.29121407]
[1747977526779,1.01382285,687.8,686.78,0.29121407]
[1747977531383,1.01382285,687.91,686.78,0.29121407]
[1747977533681,1.01382285,687.9,686.78,0.29121407]
[1747977534383,1.349,687.89,686.78,0.29121407]
[1747977535084,1.01382285,687.88,686.78,0.29121407]
[1747977543294,1.01382285,687.87,686.78,0.29121407]
[1747977544690,1.01382285,687.86,686.78,0.29121407]
[1747977546292,1.01382285,687.88,686.78,0.29121407]
[1747977547697,1.01382285,687.87,686.78,0.29121407]
[1747977549298,1.01382285,687.86,686.78,0.29121407]
[1747977550801,1.01382285,687.88,686.78,0.29121407]
[1747977551901,1.01382285,687.87,686.78,0.29121407]
[1747977553797,1.01382285,687.88,686.78,0.29121407]
[1747977555905,0.376,687.87,686.78,0.29121407]
[1747977556800,1.01382285,687.86,686.78,0.29121407]
[1747977563711,0.994,687.85,686.78,0.29121407]
[1747977564311,1.01382285,687.84,686.78,0.29121407]
[1747977573116,0.376,687.83,686.78,0.29121407]
[1747977575016,1.01382285,687.82,686.78,0.29121407]
[1747977584723,1.01382285,687.81,686.78,0.29121407]
[1747977585424,1.01382285,687.8,686.78,0.29121407]
[1747977586926,1.01382285,687.82,686.78,0.29121407]
[1747977587927,1.01382285,687.81,686.78,0.29121407]
[1747977589829,1.01382285,687.82,686.78,0.29121407]
[1747977602042,1.01382285,687.84,686.78,0.29121407]
[1747977604139,0.376,687.83,686.78,0.29121407]
[1747977606044,1.01382285,687.82,686.78,0.29121407]
[1747977622158,1.01382285,687.81,686.78,0.29121407]
[1747977623854,1.01382285,687.8,686.78,0.29121407]
[1747977625059,1.01382285,687.79,686.78,0.29121407]
[1747977626259,1.033,687.78,686.78,0.29121407]
[1747977626661,1.01382285,687.77,686.78,0.29121407]
[1747977628259,1.01382285,687.76,686.78,0.29121407]
[1747977629561,2.09635937,687.75,686.78,0.29121407]
[1747977631558,1.01382285,687.74,686.78,0.29121407]
[1747977633155,1.08253652,687.72,686.78,0.29121407]
[1747977634658,1.38982285,687.71,686.78,0.29121407]
[1747977635964,1.01382285,687.7,686.78,0.29121407]
[1747977654378,1.01382285,687.77,686.78,0.29121407]
[1747977654879,0.376,687.76,686.78,0.29121407]
[1747977655879,1.01382285,687.75,686.78,0.29121407]
[1747977658680,1.01382285,687.74,686.78,0.29121407]
[1747977660083,1.01382285,687.73,686.78,0.29121407]
[1747977661486,1.01382285,687.75,686.78,0.29121407]
[1747977662290,1.01382285,687.74,686.78,0.29121407]
[1747977664592,1.08253652,687.63,686.78,0.29121407]
[1747977665690,1.01382285,687.62,686.78,0.29121407]
[1747977667392,1.01382285,687.61,686.78,0.29121407]
[1747977668494,1.01382285,687.6,686.78,0.29121407]
[1747977669695,1.301,687.59,686.78,0.29121407]
[1747977670294,1.01382285,687.58,686.78,0.29121407]
[1747977673692,1.08253652,687.55,686.78,0.29121407]
[1747977674598,1.01382285,687.54,686.78,0.29121407]
[1747977675299,0.376,687.53,686.78,0.29121407]
[1747977675798,1.01382285,687.52,686.78,0.29121407]
[1747977677903,1.01382285,687.51,686.78,0.29121407]
[1747977679202,1.01382285,687.52,686.78,0.29121407]
[1747977681003,1.01382285,687.51,686.78,0.29121407]
[1747977682404,1.01382285,687.5,686.78,0.29121407]
[1747977683606,1.01382285,687.49,686.78,0.29121407]
[1747977685001,1.01382285,687.52,686.78,0.29121407]
[1747977686510,1.01382285,687.51,686.78,0.29121407]
[1747977687210,1.01382285,687.51,685.93,0.2532917]
[1747977687410,1.01382285,687.51,685.95,0.29156644]
[1747977687812,1.01382285,687.5,685.95,0.29156644]
[1747977688811,0.376,687.49,685.95,0.29156644]
[1747977690107,1.08253652,687.44,685.95,0.29156644]
[1747977693717,1.08253652,687.4,686.06,3.04972519]
[1747977693916,1.08253652,687.4,686.08,0.29151119]
[1747977697019,1.01382285,687.47,686.08,0.29151119]
[1747977698619,1.01382285,687.48,686.08,0.29151119]
[1747977710720,1.202,687.47,686.08,0.29151119]
[1747977711528,1.01382285,687.46,686.08,0.29151119]
[1747977712830,0.376,687.45,686.08,0.29151119]
[1747977713630,1.01382285,687.44,686.08,0.29151119]
[1747977719234,1.08253652,687.41,686.08,0.29151119]
[1747977720535,1.01382285,687.4,686.08,0.29151119]
[1747977722137,1.08253652,687.35,686.08,0.29151119]
[1747977723339,1.01382285,687.34,686.08,0.29151119]
[1747977725141,1.01382285,687.33,686.08,0.29151119]
[1747977726140,1.01382285,687.32,686.08,0.29151119]
[1747977727841,1.01382285,687.31,686.08,0.29151119]
[1747977729541,1.01382285,687.3,686.08,0.29151119]
[1747977732144,1.08253652,687.26,686.08,0.29151119]
[1747977733643,1.01382285,687.25,686.08,0.29151119]
[1747977735147,1.01382285,687.24,686.08,0.29151119]
[1747977736140,1.01382285,687.23,686.08,0.29151119]
[1747977736540,0.376,687.22,686.08,0.29151119]
[1747977737746,1.01382285,687.21,686.08,0.29151119]
[1747977739248,0.376,687.22,686.08,0.29151119]
[1747977739249,1.01382285,687.2,686.08,0.29151119]
[1747977741044,1.01382285,687.19,686.08,0.29151119]
[1747977742548,1.01382285,687.21,686.08,0.29151119]
[1747977759658,2.09635937,687.31,686.08,0.29151119]
[1747977760562,1.01382285,687.3,686.08,0.29151119]
[1747977761362,0.376,687.29,686.08,0.29151119]